{"text_format":"3","workbook":"xlsx","n_sheets":4,"sheets":["Elenco acquisti","Scomposizione budget","Elenco attività","Condividi elenco"],"not_rendered":{"charts":2,"images":2,"defined_names":12},"read":"whole","date_system":"1900"}

{"sheet":"Elenco acquisti","index":0,"n_rows":25,"n_cols":8,"rows_kept":25,"merged":[[2,1,2,7],[3,1,3,2]]}
[null,"Ritorno a scuola","Pianificazione"]
[]
[null,"Tenere traccia dell'avanzamento degli acquisti rispetto agli importi delle categorie di budget immessi in Scomposizione budget."]
[null,"Riepilogo budget",null,null,{"$f":"\"Avanzamento degli acquisti (\"&COUNTIFS(ElencoDiControllo[Acquistato], \">0\")&\" di \"&COUNTIFS(ElencoDiControllo[Da acquistare], \">0\")&\")\"","v":"Avanzamento degli acquisti (1 di 6)"}]
[null,"Budget",{"v":1500,"d":"€ 1,500.00"},null,{"$f":"IFERROR(COUNTIFS(ElencoDiControllo[Da acquistare],\">0\",ElencoDiControllo[Acquistato],\">0\")/SommaArticoliDaAcquistare,0)","v":{"v":0.16666666666666666,"d":"17%"}}]
[null,"Totale elenco acquisti",{"$f":"IFERROR(SUM(ElencoDiControllo[Costo totale]), \"\")","v":{"v":365,"d":"€ 365.00"}}]
[null,"Contante rimanente",{"$f":"IFERROR(C5-C6, \"\")","v":{"v":1135,"d":"€ 1,135.00"}}]
[null,"Elenco acquisti"]
[null,"Articolo","Categoria","Q.tà","Da acquistare","Costo","Acquistato","Costo totale"]
[null,"Matematica","Libri",1,1,{"v":55,"d":"€ 55.00"},1,{"$f":"IFERROR(ElencoDiControllo[[#This Row],[Q.tà]]*ElencoDiControllo[[#This Row],[Costo]], \"\")","v":{"v":55,"d":"€ 55.00"}}]
[null,"Italiano","Libri",1,1,null,null,{"$f":"IFERROR(ElencoDiControllo[[#This Row],[Q.tà]]*ElencoDiControllo[[#This Row],[Costo]], \"\")","v":0}]
[null,"Zaino","Materiali",1,null,{"v":30,"d":"€ 30.00"},null,{"$f":"IFERROR(ElencoDiControllo[[#This Row],[Q.tà]]*ElencoDiControllo[[#This Row],[Costo]], \"\")","v":{"v":30,"d":"€ 30.00"}}]
[null,"Calcolatrice","Materiali",1,{"$nulls":3},{"$f":"IFERROR(ElencoDiControllo[[#This Row],[Q.tà]]*ElencoDiControllo[[#This Row],[Costo]], \"\")","v":0}]
[null,"Evidenziatori","Materiali",3,{"$nulls":3},{"$f":"IFERROR(ElencoDiControllo[[#This Row],[Q.tà]]*ElencoDiControllo[[#This Row],[Costo]], \"\")","v":0}]
[null,"Uniforme","Abbigliamento",2,1,{"v":100,"d":"€ 100.00"},null,{"$f":"IFERROR(ElencoDiControllo[[#This Row],[Q.tà]]*ElencoDiControllo[[#This Row],[Costo]], \"\")","v":{"v":200,"d":"€ 200.00"}}]
[null,"Camicia, con bottoni","Abbigliamento",4,{"$nulls":3},{"$f":"IFERROR(ElencoDiControllo[[#This Row],[Q.tà]]*ElencoDiControllo[[#This Row],[Costo]], \"\")","v":0}]
[null,"Polo, t-shirt","Abbigliamento",5,{"$nulls":3},{"$f":"IFERROR(ElencoDiControllo[[#This Row],[Q.tà]]*ElencoDiControllo[[#This Row],[Costo]], \"\")","v":0}]
[null,"Pantaloncini","Abbigliamento",2,{"$nulls":3},{"$f":"IFERROR(ElencoDiControllo[[#This Row],[Q.tà]]*ElencoDiControllo[[#This Row],[Costo]], \"\")","v":0}]
[null,"Scarpe da ginnastica","Abbigliamento",2,1,null,null,{"$f":"IFERROR(ElencoDiControllo[[#This Row],[Q.tà]]*ElencoDiControllo[[#This Row],[Costo]], \"\")","v":0}]
[null,"Calzini","Abbigliamento",10,{"$nulls":3},{"$f":"IFERROR(ElencoDiControllo[[#This Row],[Q.tà]]*ElencoDiControllo[[#This Row],[Costo]], \"\")","v":0}]
[null,"Giacca primaverile","Abbigliamento",1,1,{"v":80,"d":"€ 80.00"},null,{"$f":"IFERROR(ElencoDiControllo[[#This Row],[Q.tà]]*ElencoDiControllo[[#This Row],[Costo]], \"\")","v":{"v":80,"d":"€ 80.00"}}]
[null,"Maglioni","Abbigliamento",1,{"$nulls":3},{"$f":"IFERROR(ElencoDiControllo[[#This Row],[Q.tà]]*ElencoDiControllo[[#This Row],[Costo]], \"\")","v":0}]
[null,"Felpe","Abbigliamento",1,{"$nulls":3},{"$f":"IFERROR(ElencoDiControllo[[#This Row],[Q.tà]]*ElencoDiControllo[[#This Row],[Costo]], \"\")","v":0}]
[null,"Biancheria","Abbigliamento",10,{"$nulls":3},{"$f":"IFERROR(ElencoDiControllo[[#This Row],[Q.tà]]*ElencoDiControllo[[#This Row],[Costo]], \"\")","v":0}]
[null,"Giacca invernale","Abbigliamento",1,1,null,null,{"$f":"IFERROR(ElencoDiControllo[[#This Row],[Q.tà]]*ElencoDiControllo[[#This Row],[Costo]], \"\")","v":0}]

{"sheet":"Scomposizione budget","index":1,"n_rows":6,"n_cols":3,"rows_kept":6}
[null,"Scomposizione budget"]
[null,"Aggiungere le categorie e gli importi di budget di cui tenere traccia in relazione all'elenco degli acquisti."]
[null,"Categoria","Costo totale"]
[null,"Abbigliamento",{"$f":"IFERROR(SUMIFS(ElencoDiControllo[Costo totale],ElencoDiControllo[Categoria],Categoria[[#This Row],[Categoria]]), \"\")","v":{"v":280,"d":"€ 280.00"}}]
[null,"Materiali",{"$f":"IFERROR(SUMIFS(ElencoDiControllo[Costo totale],ElencoDiControllo[Categoria],Categoria[[#This Row],[Categoria]]), \"\")","v":{"v":30,"d":"€ 30.00"}}]
[null,"Libri",{"$f":"IFERROR(SUMIFS(ElencoDiControllo[Costo totale],ElencoDiControllo[Categoria],Categoria[[#This Row],[Categoria]]), \"\")","v":{"v":55,"d":"€ 55.00"}}]

{"sheet":"Elenco attività","index":2,"n_rows":22,"n_cols":3,"rows_kept":22}
[null,"Elenco attività"]
[null,"Tenere traccia di tutte le attività che è necessario completare prima dell'inizio della scuola."]
[null,"Fatto","Attività"]
[null,"x","Compilare tutti i moduli di registrazione"]
[null,null,"Pianifica la visita medica e oculistica, se necessario"]
[null,null,"Controlla tutte le vaccinazioni obbligatorie"]
[null,null,"Ottieni indicazioni dal medico per la somministrazione di tutti i farmaci necessari"]
[null,null,"Verifica i requisiti di abbigliamento dalla scuola"]
[null,null,"Ottieni un elenco del materiale necessario per la scuola"]
[null,null,"Incontra l'insegnante"]
[null,null,"Stabilisci il metodo di comunicazione preferito dell'insegnante (telefono, posta elettronica, nota scritta)"]
[null,null,"Visita la scuola insieme al bambino"]
[null,null,"Aiuta il bambino a memorizzare il numero di casa, il numero dell'ufficio e l'indirizzo di casa"]
[null,null,"Organizza il trasporto, identifica un punto di incontro sicuro e prova il percorso"]
[null,null,"Se vai a piedi, prova alcune volte il percorso insieme al bambino"]
[null,null,"Se condividi un'auto, presenta il bambino a tutte le persone che guideranno"]
[null,null,"Se prenderai l'autobus, verifica orari e fermate"]
[null,null,"Organizza l'assistenza pre-scuola o dopo scuola"]
[null,null,"Pianifica un menu per colazioni, merende a scuola, pranzi al sacco, merende dopo scuola"]
[null,null,"Stabilisci gli orari e l'organizzazione dei compiti"]
[null,null,"Definisci un orario per andare a letto almeno due settimane prima dell'inizio della scuola"]
[null,null,"Prepara un calendario di tutti gli eventi e impegni scolastici"]

{"sheet":"Condividi elenco","index":3,"n_rows":4,"n_cols":5,"rows_kept":4}
[null,"Condividi elenco",null,null,"Condividere questo elenco con altre persone in modo che possano contribuire. Selezionare Condividi in alto a destra o premere ALT, quindi premere \"Z\" seguito da \"S\". Salvare il file in OneDrive e inviare il collegamento agli amici."]
[null,"Nome","E-mail","Condiviso?"]
[null,"Lorenzo Russo","lorenzo@example.com","Sì"]
[null,"Luca Udinesi","luca@example.com","No"]